bitfinex-derivatives/quotes_BTCF0:USTF0_20250703
["timestamp","ask_amount","ask_price","bid_price","bid_amount"]
[1751515858140,0.1867251,108820.0,108810.0,2.25402746]
[1751515861046,0.1867251,108820.0,108810.0,2.30913415]
[1751515861448,0.2169251,108820.0,108810.0,2.30913415]
[1751515871259,0.2169251,108820.0,108810.0,2.25402746]
[1751515875366,0.003,108820.0,108810.0,2.25402746]
[1751515875560,0.186709,108820.0,108810.0,2.25402746]
[1751515876358,0.003,108820.0,108810.0,2.25402746]
[1751515878665,0.003,108820.0,108810.0,2.3276466]
[1751515885571,0.2927981,108840.0,108830.0,0.1836921]
[1751515885772,0.3705199,108840.0,108830.0,1.50958534]
[1751515886072,0.3705199,108840.0,108830.0,1.55468835]
[1751515886573,0.3705199,108840.0,108830.0,1.49958534]
[1751515886771,0.3725199,108840.0,108830.0,1.09958534]
[1751515886972,0.3725199,108840.0,108830.0,0.84878456]
[1751515887373,0.3745199,108840.0,108830.0,0.84878456]
[1751515888576,0.3745199,108840.0,108830.0,0.85788296]
[1751515889876,0.3745199,108840.0,108830.0,0.91298597]
[1751515890578,0.3745199,108840.0,108830.0,0.85788296]
[1751515891778,0.3745199,108840.0,108830.0,1.17788296]
[1751515891977,0.3745199,108840.0,108830.0,0.85788296]
[1751515892678,2.09675712,108840.0,108830.0,0.05349168]
[1751515892877,2.89132512,108840.0,108830.0,0.00359168]
[1751515893078,0.1836922,108830.0,108820.0,0.02012376]
[1751515893279,1.22739298,108830.0,108820.0,0.02012376]
[1751515893481,1.22739298,108830.0,108820.0,0.27092454]
[1751515894081,0.91739298,108830.0,108820.0,0.20383276]
[1751515894277,1.19739298,108830.0,108820.0,0.45463354]
[1751515894478,0.6065922,108830.0,108820.0,0.70543432]
[1751515894787,1.0812722,108830.0,108820.0,1.06623432]
[1751515895284,1.0822722,108830.0,108820.0,1.06623432]
[1751515895483,1.33307298,108830.0,108820.0,1.06623432]
[1751515895775,0.2467922,108830.0,108820.0,1.06623432]
[1751515895981,0.49759298,108830.0,108820.0,1.06623432]
[1751515898888,0.49759298,108830.0,108820.0,1.07554461]
[1751515901292,0.49759298,108830.0,108820.0,1.07195293]
[1751515902994,0.2467922,108830.0,108820.0,1.07195293]
[1751515911097,0.49759298,108830.0,108820.0,1.07195293]
[1751515912196,0.49759298,108830.0,108820.0,0.57035137]
[1751515912401,0.49759298,108830.0,108820.0,1.07195293]
[1751515912902,0.49759298,108830.0,108820.0,0.71115293]
[1751515913098,0.49759298,108830.0,108820.0,1.10305293]
[1751515914202,0.2467922,108830.0,108820.0,1.10305293]
[1751515914402,0.49759298,108830.0,108820.0,1.10305293]
[1751515918706,0.49759298,108830.0,108820.0,1.13315293]
[1751515919906,0.49759298,108830.0,108820.0,0.77235293]
[1751515920212,0.49759298,108830.0,108820.0,1.13315293]
[1751515922111,0.49759298,108830.0,108820.0,0.77235293]
[1751515922312,0.49759298,108830.0,108820.0,1.18825594]
[1751515923005,0.49759298,108830.0,108820.0,1.22500914]
[1751515926414,0.49759298,108830.0,108820.0,1.25810914]
[1751515931015,0.1846922,108830.0,108820.0,1.70810914]
[1751515931212,0.1846922,108830.0,108820.0,2.03705293]
[1751515931412,0.1846922,108830.0,108820.0,2.09214196]
[1751515931812,0.1846922,108830.0,108820.0,2.28214196]
[1751515932315,0.1846922,108830.0,108820.0,2.31214196]
[1751515943625,0.1846922,108830.0,108820.0,1.59054196]
[1751515943826,0.1846922,108830.0,108820.0,2.31214196]
[1751515952525,0.001,108830.0,108820.0,2.56294274]
[1751515952732,0.2296068,108840.0,108830.0,0.1836921]
[1751515953029,0.2296068,108840.0,108830.0,1.96269347]
[1751515953931,0.2316068,108840.0,108830.0,1.96269347]
[1751515956040,0.2336068,108840.0,108830.0,1.96269347]
[1751515960036,0.2336068,108840.0,108830.0,1.73269347]
[1751515960544,0.2336068,108840.0,108830.0,1.95269347]
[1751515961344,0.2336068,108840.0,108830.0,2.75093355]
[1751515963640,0.2336068,108840.0,108830.0,2.78763932]
[1751515965549,0.2336068,108840.0,108830.0,2.75093355]
[1751515966448,0.2336068,108840.0,108830.0,2.54093355]
[1751515975055,0.187688,108840.0,108830.0,2.54093355]
[1751515976959,0.187688,108840.0,108830.0,2.90173355]
[1751515982156,0.187688,108840.0,108830.0,2.85173355]
[1751515982655,0.218788,108840.0,108830.0,2.85173355]
[1751515986467,0.218788,108840.0,108830.0,2.86173355]
[1751515987659,0.218788,108840.0,108830.0,2.49093355]
[1751515989562,0.250588,108840.0,108830.0,2.49093355]
[1751515991267,0.250588,108840.0,108830.0,2.52765254]
[1751515992372,0.250588,108840.0,108830.0,2.53765254]
[1751516001080,0.250588,108840.0,108830.0,2.50093355]
[1751516001380,0.248588,108840.0,108830.0,2.50193355]
[1751516001576,0.246588,108840.0,108830.0,2.50193355]
[1751516001777,0.246588,108840.0,108830.0,2.50293355]
[1751516005785,0.214788,108840.0,108830.0,2.50293355]
[1751516008579,0.183688,108840.0,108830.0,2.40293355]
[1751516008782,0.3877224,108850.0,108840.0,0.1836753]
[1751516008989,0.3877224,108850.0,108840.0,1.65153654]
[1751516009286,0.3877224,108850.0,108840.0,1.68263654]
[1751516009785,0.3877224,108850.0,108840.0,1.69263654]
[1751516010285,0.3557224,108850.0,108840.0,1.69263654]
[1751516010984,0.3557224,108850.0,108840.0,1.63758073]
[1751516013288,0.3557224,108850.0,108840.0,1.62758073]
[1751516013488,0.3557224,108850.0,108840.0,1.66758073]
[1751516013686,0.3878224,108850.0,108840.0,1.66758073]
[1751516014494,0.3878224,108850.0,108840.0,1.53758073]
[1751516018589,0.3878224,108850.0,108840.0,1.59758073]
[1751516018789,0.3878224,108850.0,108840.0,1.09597917]
[1751516018990,0.3878224,108850.0,108840.0,1.59758073]
[1751516020297,0.3244224,108850.0,108840.0,1.59758073]
[1751516021096,0.3244224,108850.0,108840.0,1.17758073]
[1751516021298,0.3568224,108850.0,108840.0,1.51758073]
[1751516022098,0.3878224,108850.0,108840.0,1.51758073]
[1751516023902,0.3878224,108850.0,108840.0,1.25758073]
[1751516026504,0.3878224,108850.0,108840.0,1.51758073]
[1751516027212,0.3878224,108850.0,108840.0,1.57263654]
[1751516030212,0.3878224,108850.0,108840.0,1.21183654]
[1751516030412,0.3878224,108850.0,108840.0,1.57263654]
[1751516030813,0.3878224,108850.0,108840.0,1.56263654]
[1751516031507,0.3878224,108850.0,108840.0,1.23263654]
[1751516031712,0.3878224,108850.0,108840.0,1.61263654]
[1751516032315,0.3878224,108850.0,108840.0,1.23263654]
[1751516041224,0.3878224,108850.0,108840.0,1.17758073]
[1751516046126,0.3878224,108850.0,108840.0,1.19758073]
[1751516051131,0.3878224,108850.0,108840.0,1.25263654]
[1751516058742,0.3244224,108850.0,108840.0,1.56263654]
[1751516059244,0.3244224,108850.0,108840.0,1.63263654]
[1751516060342,0.3244224,108850.0,108840.0,1.56263654]
[1751516062547,0.3244224,108850.0,108840.0,1.55263654]
[1751516065248,0.3244224,108850.0,108840.0,1.51593267]
[1751516065444,0.3244224,108850.0,108840.0,1.55264804]
[1751516066553,0.3568224,108850.0,108840.0,1.25264804]
[1751516066755,0.3568224,108850.0,108840.0,1.55264804]
[1751516067047,0.232587,108850.0,108840.0,1.96264804]
[1751516067248,0.1836584,108850.0,108840.0,2.65528195]
[1751516069250,0.1836584,108850.0,108840.0,2.69198441]
[1751516069456,0.1836584,108850.0,108840.0,2.60022614]
[1751516070358,0.1836584,108850.0,108840.0,2.67384528]
[1751516071359,0.1836584,108850.0,108840.0,2.60022614]
[1751516072559,0.1836584,108850.0,108840.0,2.65524099]
[1751516072758,0.1836584,108850.0,108840.0,2.60022614]
[1751516073858,0.1836584,108850.0,108840.0,1.8478238]
[1751516074055,0.1836584,108850.0,108840.0,2.40443505]
[1751516075456,0.1836584,108850.0,108840.0,2.65523583]
[1751516081254,0.1836584,108850.0,108840.0,2.69189501]
[1751516083564,0.2295582,108860.0,108850.0,0.1836584]
[1751516083764,0.2295582,108860.0,108850.0,2.52893914]
[1751516083961,0.2295582,108860.0,108850.0,2.56183914]
[1751516084162,0.2295582,108860.0,108850.0,2.63183914]
[1751516084762,0.2315582,108860.0,108850.0,2.63183914]
[1751516084965,0.2335582,108860.0,108850.0,2.63183914]
[1751516090868,0.2335582,108860.0,108850.0,1.79811914]
[1751516091068,0.2335582,108860.0,108850.0,2.63175914]
[1751516091265,0.2335582,108860.0,108850.0,2.68676883]
[1751516092170,0.1876474,108860.0,108850.0,2.68676883]
[1751516093068,0.4748082,108870.0,108860.0,0.1836416]
[1751516093266,0.2784295,108880.0,108870.0,0.1836247]
[1751516093566,0.2784295,108880.0,108870.0,1.13298544]
[1751516093567,0.3404295,108880.0,108870.0,1.13298544]
[1751516093769,0.3404295,108880.0,108870.0,1.49298544]
[1751516094072,0.3404295,108880.0,108870.0,1.24218466]
[1751516094771,0.3464295,108880.0,108870.0,0.87218466]
[1751516095566,0.3787295,108880.0,108870.0,0.87218466]
[1751516097474,0.3787295,108880.0,108870.0,0.84490935]
[1751516097669,0.45062198,108880.0,108870.0,0.84490935]
[1751516097875,0.1836247,108870.0,108860.0,0.58861061]
[1751516098081,0.4690247,108870.0,108860.0,1.00452051]
[1751516098578,0.4690247,108870.0,108860.0,1.25532129]
[1751516100181,0.4690247,108870.0,108860.0,0.75371973]
[1751516100382,0.4690247,108870.0,108860.0,1.2643332]
[1751516102583,0.4690247,108870.0,108860.0,1.2962332]
[1751516103888,0.4371247,108870.0,108860.0,1.2962332]
[1751516108795,0.2471247,108870.0,108860.0,1.2962332]
[1751516109089,0.2471247,108870.0,108860.0,1.6570332]
[1751516109285,0.2471247,108870.0,108860.0,1.65699934]
[1751516110790,0.2471247,108870.0,108860.0,1.62037402]
[1751516111892,0.2491247,108870.0,108860.0,1.62037402]
[1751516112599,0.2481247,108870.0,108860.0,1.62037402]
[1751516112795,0.2481247,108870.0,108860.0,1.65067402]
[1751516116798,0.2481247,108870.0,108860.0,1.68077402]
[1751516118802,0.2511247,108870.0,108860.0,1.68077402]
[1751516119300,0.2491247,108870.0,108860.0,1.68077402]
[1751516121902,0.2176247,108870.0,108860.0,1.68077402]
[1751516127207,0.1856247,108870.0,108860.0,1.77077402]
[1751516127906,0.1856247,108870.0,108860.0,1.86077402]
[1751516135312,0.1856247,108870.0,108860.0,1.49997402]
[1751516135507,0.1856247,108870.0,108860.0,1.86077402]
[1751516136213,0.1856247,108870.0,108860.0,1.49997402]
[1751516136512,0.1856247,108870.0,108860.0,1.86077402]
[1751516142317,0.1856247,108870.0,108860.0,1.84077402]
[1751516143615,0.1856247,108870.0,108860.0,1.83077402]
[1751516146216,0.2177247,108870.0,108860.0,1.67576433]
[1751516149723,0.2177247,108870.0,108860.0,1.73077402]
[1751516154225,0.2177247,108870.0,108860.0,1.67576433]
[1751516155226,0.2177247,108870.0,108860.0,1.36997402]
[1751516155528,0.2177247,108870.0,108860.0,1.73077402]
[1751516161933,0.46852548,108870.0,108860.0,0.83412392]
[1751516162125,0.2504247,108870.0,108860.0,0.99943044]
[1751516162325,0.2504247,108870.0,108860.0,0.77943044]
[1751516162731,0.2504247,108870.0,108860.0,0.59578884]
[1751516163630,0.2504247,108870.0,108860.0,0.77943044]
[1751516164031,0.2504247,108870.0,108860.0,0.79776552]
[1751516164329,0.2504247,108870.0,108860.0,0.83443517]
[1751516164629,0.2504247,108870.0,108860.0,0.79776552]
[1751516165833,0.2504247,108870.0,108860.0,0.61412392]
[1751516166832,0.2504247,108870.0,108860.0,0.83443294]
[1751516167925,0.2504247,108870.0,108860.0,0.86663294]
[1751516169733,0.2504247,108870.0,108860.0,0.82996542]
[1751516171332,0.2504247,108870.0,108860.0,0.86663017]
[1751516172832,0.2504247,108870.0,108860.0,1.22743017]
[1751516173835,0.2504247,108870.0,108860.0,1.22742786]
[1751516174040,0.2504247,108870.0,108860.0,1.25882786]
[1751516175839,0.2504247,108870.0,108860.0,1.22216542]
[1751516176337,0.2494247,108870.0,108860.0,1.25882812]
[1751516176538,0.2494247,108870.0,108860.0,1.22216542]
[1751516176849,0.2484247,108870.0,108860.0,1.22216542]
[1751516177050,0.2484247,108870.0,108860.0,1.22316542]
[1751516190561,0.2484247,108870.0,108860.0,1.58316542]
[1751516191562,0.2484247,108870.0,108860.0,1.22316542]
[1751516191864,0.2484247,108870.0,108860.0,1.59316542]
[1751516192665,0.2484247,108870.0,108860.0,1.22316542]
[1751516196660,0.2484247,108870.0,108860.0,0.86236542]
[1751516196867,0.2484247,108870.0,108860.0,1.22316542]
[1751516208780,0.2484247,108870.0,108860.0,1.55316542]
[1751516209871,0.2484247,108870.0,108860.0,1.22316542]
[1751516212984,0.2484247,108870.0,108860.0,0.86236542]
[1751516213179,0.2484247,108870.0,108860.0,1.32316542]
[1751516214380,0.2484247,108870.0,108860.0,1.32311145]
[1751516217887,0.2484247,108870.0,108860.0,0.96231145]
[1751516218088,0.2484247,108870.0,108860.0,1.32311145]
[1751516218287,0.2484247,108870.0,108860.0,0.96231145]
[1751516218485,0.2484247,108870.0,108860.0,1.32311145]
[1751516218683,0.2484247,108870.0,108860.0,1.59311145]
[1751516219988,0.2484247,108870.0,108860.0,1.23231145]
[1751516220292,0.2484247,108870.0,108860.0,1.59311145]
[1751516221389,0.2484247,108870.0,108860.0,1.62978136]
[1751516221884,0.2484247,108870.0,108860.0,1.26898136]
[1751516222090,0.2484247,108870.0,108860.0,1.62978136]
[1751516222392,0.2484247,108870.0,108860.0,1.59311145]
[1751516225094,0.2484247,108870.0,108860.0,1.28311145]
[1751516227899,0.2157247,108870.0,108860.0,1.69311145]
[1751516228196,0.2157247,108870.0,108860.0,1.93311145]
[1751516228790,0.1836247,108870.0,108860.0,1.93311145]
[1751516229696,0.1836247,108870.0,108860.0,2.76619145]
[1751516230497,0.1836247,108870.0,108860.0,3.01699223]
[1751516231301,0.1836247,108870.0,108860.0,3.03560168]
[1751516231896,0.1836247,108870.0,108860.0,2.70560168]
[1751516232101,0.1836247,108870.0,108860.0,2.97560168]
[1751516239001,0.003,108880.0,108870.0,0.1836247]
[1751516239207,0.003,108880.0,108870.0,1.94872626]
[1751516239704,0.003,108880.0,108870.0,2.0223454]
[1751516240101,0.004,108880.0,108870.0,2.0223454]
[1751516240308,0.7002779,108900.0,108890.0,0.1835909]
[1751516240510,0.7002779,108900.0,108890.0,0.74871309]
[1751516240710,0.7002779,108900.0,108890.0,0.84331309]
[1751516241409,0.3394779,108900.0,108890.0,0.84331309]
[1751516241606,0.2189878,108900.0,108890.0,0.96331309]
[1751516241810,0.003,108900.0,108890.0,1.71411309]
[1751516242004,0.007,108900.0,108890.0,1.7690508]
[1751516242309,0.1905741,108900.0,108890.0,1.73242566]
[1751516243211,0.1905741,108900.0,108890.0,1.99898509]
[1751516243612,0.1885741,108900.0,108890.0,1.99898509]
[1751516243813,0.005,108900.0,108890.0,1.96242566]
[1751516244009,0.003,108900.0,108890.0,1.96242566]
[1751516244205,0.003,108910.0,108900.0,0.1835741]
[1751516244407,0.1865573,108910.0,108900.0,2.51602871]
[1751516246215,0.1865573,108910.0,108900.0,2.47949566]
[1751516246510,0.1865573,108910.0,108900.0,2.51602871]
[1751516246714,0.1875573,108910.0,108900.0,2.51602871]
[1751516247112,0.1885573,108910.0,108900.0,2.51602871]
[1751516247610,0.1885573,108910.0,108900.0,2.47949566]
[1751516247807,0.1885573,108910.0,108900.0,2.73029644]
[1751516249419,0.1885573,108910.0,108900.0,2.47949566]
[1751516251919,0.1885573,108910.0,108900.0,2.13949566]
[1751516252224,0.1885573,108910.0,108900.0,2.49949566]
[1751516253519,0.1885573,108910.0,108900.0,2.41949566]
[1751516255119,0.1885573,108910.0,108900.0,1.93949566]
[1751516255325,0.2521573,108910.0,108900.0,2.04949566]
[1751516256626,0.2521573,108910.0,108900.0,1.98889566]
[1751516256927,0.2521573,108910.0,108900.0,1.87889566]
[1751516260328,0.2521573,108910.0,108900.0,1.3772941]
[1751516260515,0.2521573,108910.0,108900.0,1.87889566]
[1751516260822,0.75295808,108910.0,108900.0,0.25080078]
[1751516261026,0.1835741,108900.0,108890.0,0.37769549]
[1751516261223,0.86777488,108900.0,108890.0,0.26769627]
[1751516261526,0.183591,108890.0,108880.0,0.82679548]
[1751516261722,0.279491,108890.0,108880.0,1.07759626]
[1751516261922,0.289491,108890.0,108880.0,1.07759626]
[1751516262122,0.279491,108890.0,108880.0,1.07759626]
[1751516264030,0.279491,108890.0,108880.0,1.07959626]
[1751516264326,0.279491,108890.0,108880.0,1.08159626]
[1751516267227,0.246991,108890.0,108880.0,1.08159626]
[1751516273124,0.266991,108890.0,108880.0,0.3964]
[1751516273326,0.266991,108890.0,108880.0,1.08160936]
[1751516276734,0.266991,108890.0,108880.0,0.5800078]
[1751516276929,0.266991,108890.0,108880.0,1.08160936]
[1751516277230,0.266991,108890.0,108880.0,0.72080936]
[1751516277431,0.266991,108890.0,108880.0,1.08160936]
[1751516280031,0.266991,108890.0,108880.0,0.6112078]
[1751516280232,0.266991,108890.0,108880.0,1.11280936]
[1751516283135,0.266991,108890.0,108880.0,1.14460936]
[1751516287941,0.235691,108890.0,108880.0,1.14460936]
[1751516295951,0.235691,108890.0,108880.0,1.19959998]
[1751516300366,0.235691,108890.0,108880.0,1.55959998]
[1751516302769,0.235691,108890.0,108880.0,1.21959998]
[1751516303870,0.235691,108890.0,108880.0,1.25626704]
[1751516308782,0.235691,108890.0,108880.0,1.23626704]
[1751516309174,0.215691,108890.0,108880.0,1.23626704]
[1751516311374,0.215691,108890.0,108880.0,1.18127642]
[1751516317684,0.215691,108890.0,108880.0,1.51127642]
[1751516319583,0.183591,108890.0,108880.0,1.51127642]
[1751516319784,0.2753755,108900.0,108890.0,0.1835909]
[1751516320088,0.2753755,108900.0,108890.0,1.81597663]
[1751516320288,0.2753755,108900.0,108890.0,2.66720308]
[1751516325390,0.2294793,108900.0,108890.0,2.66720308]
[1751516325993,0.278351,108910.0,108900.0,0.1835741]
[1751516326193,0.278351,108910.0,108900.0,1.66348365]
[1751516327195,0.279351,108910.0,108900.0,1.66348365]
[1751516327493,0.280351,108910.0,108900.0,1.66348365]
[1751516332893,0.280351,108910.0,108900.0,1.62687455]
[1751516340508,0.280351,108910.0,108900.0,1.93348365]
[1751516341306,0.2344593,108910.0,108900.0,2.18428443]
[1751516341510,0.005,108910.0,108900.0,2.23927505]
[1751516341711,0.1885572,108910.0,108900.0,2.23927505]
[1751516342611,0.1885572,108910.0,108900.0,2.20266595]
[1751516345011,0.005,108910.0,108900.0,2.20266595]
[1751516347216,0.005,108910.0,108900.0,2.14767533]
[1751516347418,0.005,108910.0,108900.0,2.20259078]
[1751516348219,0.005,108910.0,108900.0,2.14767533]
[1751516348419,0.1835425,108920.0,108900.0,1.96410123]
[1751516348622,0.3372037,108930.0,108920.0,0.1835405]
[1751516348816,0.3372037,108930.0,108920.0,1.1925501]
[1751516349116,0.3372037,108930.0,108920.0,1.2232501]
[1751516349619,0.3402037,108930.0,108920.0,1.2232501]
[1751516349919,0.3422037,108930.0,108920.0,1.2232501]
[1751516350517,0.2196384,108930.0,108920.0,1.91405088]
[1751516350716,0.1835384,108930.0,108920.0,2.03237005]
[1751516350919,0.1835384,108930.0,108920.0,2.03337005]
[1751516351114,0.1835384,108930.0,108920.0,1.70256927]
[1751516351315,0.1835384,108930.0,108920.0,2.02256927]
[1751516351618,0.1835384,108930.0,108920.0,2.03256927]
[1751516351818,0.1835384,108930.0,108920.0,1.79184239]
[1751516352018,0.1835384,108930.0,108920.0,2.81648239]
[1751516352720,0.1835384,108930.0,108920.0,2.84748239]
[1751516353617,0.2323924,108940.0,108930.0,0.1835236]
[1751516353822,0.2323924,108940.0,108930.0,1.52982516]
[1751516354011,0.2975924,108940.0,108930.0,1.56172516]
[1751516354322,0.2975924,108940.0,108930.0,2.6732532]
[1751516354621,0.2975924,108940.0,108930.0,2.1332532]
[1751516354823,0.2975924,108940.0,108930.0,2.4432532]
[1751516355323,0.2975924,108940.0,108930.0,2.40664516]
[1751516355918,0.2975924,108940.0,108930.0,2.40864516]
[1751516356523,0.2975924,108940.0,108930.0,2.67864516]
[1751516357127,0.2975924,108940.0,108930.0,2.41064516]
[1751516357316,0.2975924,108940.0,108930.0,2.07064516]
[1751516357520,0.2654924,108940.0,108930.0,2.41064516]
[1751516357726,0.2196136,108940.0,108930.0,2.71064516]
[1751516358329,0.0361,108940.0,108930.0,2.71064516]
[1751516358530,0.2196068,108940.0,108930.0,2.7472532]
[1751516358831,0.2196068,108940.0,108930.0,2.7172532]
[1751516359023,0.2196068,108940.0,108930.0,2.4972532]
[1751516359424,0.1865068,108940.0,108930.0,2.7172532]
[1751516359617,0.1865068,108940.0,108930.0,2.4472532]
[1751516359829,0.1865068,108940.0,108930.0,2.4474932]
[1751516360023,0.2484068,108940.0,108930.0,2.1974932]
[1751516361431,0.2484068,108940.0,108930.0,2.16088516]
[1751516361626,0.2484068,108940.0,108930.0,1.23572516]
[1751516361926,0.2484068,108940.0,108930.0,2.07076516]
[1751516362131,0.2484068,108940.0,108930.0,2.39076516]
[1751516362828,0.2484068,108940.0,108930.0,0.88912438]
[1751516363129,0.62920758,108940.0,108930.0,0.43832438]
[1751516364531,0.3784068,108940.0,108930.0,0.43832438]
[1751516366937,0.3784068,108940.0,108930.0,1.17912438]
[1751516367132,0.2484068,108940.0,108930.0,1.42992516]
[1751516367530,0.2484068,108940.0,108930.0,1.39992516]
[1751516367837,0.2181068,108940.0,108930.0,1.66422516]
[1751516368233,0.1865068,108940.0,108930.0,1.89422516]
[1751516369136,0.1865068,108940.0,108930.0,1.68422516]
[1751516369626,0.1865068,108940.0,108930.0,1.60422516]
[1751516369831,0.003,108940.0,108930.0,1.91967674]
[1751516370933,0.1865069,108940.0,108930.0,1.91967674]
[1751516371134,0.1865069,108940.0,108930.0,1.97459591]
[1751516371334,0.1865069,108940.0,108930.0,1.93798787]
[1751516371934,0.2293748,108950.0,108940.0,0.1835069]
[1751516372132,0.2752509,108950.0,108940.0,2.35162957]
[1751516372538,0.3065255,108960.0,108950.0,0.18349]
[1751516372740,0.3065255,108960.0,108950.0,1.17451255]
[1751516373039,0.3379255,108960.0,108950.0,1.17451255]
[1751516374438,0.3379255,108960.0,108950.0,0.82451255]
[1751516374636,0.3399255,108960.0,108950.0,0.82451255]
[1751516377342,0.3399255,108960.0,108950.0,0.86105267]
[1751516377943,0.3399255,108960.0,108950.0,1.18105267]
[1751516379638,0.2772255,108960.0,108950.0,1.43127522]
[1751516379847,0.2781998,108970.0,108960.0,0.1834732]
[1751516380137,0.2781998,108970.0,108960.0,0.99252725]
[1751516380340,0.3201998,108970.0,108960.0,0.48279524]
[1751516380532,0.3513998,108970.0,108960.0,1.31763524]
[1751516380938,0.3513998,108970.0,108960.0,0.48279524]
[1751516380939,0.3533998,108970.0,108960.0,0.48279524]
[1751516381143,0.3533998,108970.0,108960.0,0.01659949]
[1751516381337,0.3533998,108970.0,108960.0,0.20007269]
[1751516381543,0.3533998,108970.0,108960.0,0.45029524]
[1751516382239,0.3533998,108970.0,108960.0,0.45529524]
[1751516382646,0.3533998,108970.0,108960.0,0.45029524]
[1751516382944,0.3533998,108970.0,108960.0,0.45329524]
[1751516383141,0.3533998,108970.0,108960.0,0.81409524]
[1751516383441,0.2663337,108970.0,108960.0,1.77431779]
[1751516383641,0.005,108970.0,108960.0,1.86951779]
[1751516383842,0.005,108970.0,108960.0,1.96096897]
[1751516384044,0.003,108970.0,108960.0,1.96096897]
[1751516384239,0.1864563,108970.0,108960.0,1.96296897]
[1751516384439,0.1864563,108970.0,108960.0,1.9080498]
[1751516388141,0.1864563,108970.0,108960.0,1.6480498]
[1751516389542,0.1864563,108970.0,108960.0,1.5880498]
[1751516394852,0.1864563,108970.0,108960.0,1.8580498]
[1751516395151,0.1864563,108970.0,108960.0,1.5880498]
[1751516395651,0.1864563,108970.0,108960.0,1.9080498]
[1751516395849,0.1864563,108970.0,108960.0,1.5880498]
[1751516397150,0.1864563,108970.0,108960.0,1.33782725]
[1751516397350,0.2175563,108970.0,108960.0,1.5880498]
[1751516398353,0.2175563,108970.0,108960.0,1.64296897]
[1751516398754,0.2175563,108970.0,108960.0,1.5880498]
[1751516399152,0.2175563,108970.0,108960.0,1.9080498]
[1751516399356,0.2175563,108970.0,108960.0,1.5880498]
[1751516400057,0.2175563,108970.0,108960.0,1.8780498]
[1751516400245,0.2175563,108970.0,108960.0,1.95296897]
[1751516400446,0.2175563,108970.0,108960.0,1.8980498]
[1751516400655,0.2175563,108970.0,108960.0,2.3732898]
[1751516401157,0.2175563,108970.0,108960.0,2.70820897]
[1751516401454,0.2175563,108970.0,108960.0,2.3732898]
[1751516402458,0.2175563,108970.0,108960.0,2.3099898]
[1751516402654,0.2485563,108970.0,108960.0,2.3099898]
[1751516402958,0.2485563,108970.0,108960.0,2.4199898]
[1751516403258,0.2485563,108970.0,108960.0,2.7236898]
[1751516406763,0.2175563,108970.0,108960.0,2.7236898]
[1751516407255,0.2175563,108970.0,108960.0,2.77860897]
[1751516408365,0.2175563,108970.0,108960.0,2.53860897]
[1751516408662,0.2175563,108970.0,108960.0,2.77860897]
[1751516409462,0.2175563,108970.0,108960.0,2.74207696]
[1751516410161,0.2175563,108970.0,108960.0,2.77864142]
[1751516410364,0.2175563,108970.0,108960.0,2.74207696]
[1751516411363,0.2175563,108970.0,108960.0,2.68715779]
[1751516411765,0.2175563,108970.0,108960.0,2.18671269]
[1751516411968,0.2175563,108970.0,108960.0,2.68688477]
[1751516412256,0.2175563,108970.0,108960.0,2.76020559]
[1751516412963,0.2175563,108970.0,108960.0,2.46020559]
[1751516413168,0.2175563,108970.0,108960.0,2.74020559]
[1751516413768,0.2488563,108970.0,108960.0,2.74020559]
[1751516414267,0.2488563,108970.0,108960.0,2.73020559]
[1751516415570,0.2488563,108970.0,108960.0,2.69710559]
[1751516415766,0.2488563,108970.0,108960.0,2.66650559]
[1751516416268,0.2488563,108970.0,108960.0,2.39650559]
[1751516416469,0.2488563,108970.0,108960.0,2.69650559]
[1751516416666,0.2488563,108970.0,108960.0,2.39650559]
[1751516417170,0.2488563,108970.0,108960.0,1.01927955]
[1751516417171,0.49894234,108970.0,108960.0,1.01927955]
[1751516417468,0.50894234,108970.0,108960.0,1.4426488]
[1751516417769,0.53954234,108970.0,108960.0,1.1026488]
[1751516417966,0.2894563,108970.0,108960.0,1.1026488]
[1751516419770,0.2894563,108970.0,108960.0,0.85261922]
[1751516420969,0.30475823,108970.0,108960.0,0.85261922]
[1751516422965,0.30475823,108970.0,108960.0,0.87092124]
[1751516425776,0.21175823,108970.0,108960.0,0.87092124]
[1751516426074,0.1864563,108970.0,108960.0,1.51436374]
[1751516426382,0.1864563,108970.0,108960.0,1.54476374]
[1751516426577,0.2188563,108970.0,108960.0,1.54476374]
[1751516426778,0.2188563,108970.0,108960.0,1.55317851]
[1751516427079,0.2188563,108970.0,108960.0,1.47141599]
[1751516427279,0.2188563,108970.0,108960.0,1.22127349]
[1751516427681,0.2188563,108970.0,108960.0,1.02127349]
[1751516428180,0.2188563,108970.0,108960.0,0.90127349]
[1751516428780,0.2188563,108970.0,108960.0,0.54047349]
[1751516428974,0.5789988,108970.0,108960.0,0.29650282]
[1751516429174,0.6097988,108970.0,108960.0,0.24164452]
[1751516429376,0.3596563,108970.0,108960.0,0.24164452]
[1751516429677,0.3596563,108970.0,108960.0,0.49178702]
[1751516431782,0.3596563,108970.0,108960.0,0.24164452]
[1751516431983,0.6097988,108970.0,108960.0,0.24164452]
[1751516432184,0.3596563,108970.0,108960.0,0.24164452]
[1751516432579,0.3596563,108970.0,108960.0,0.49178702]
[1751516433183,0.3288563,108970.0,108960.0,0.82178702]
[1751516433378,0.2188563,108970.0,108960.0,0.52398702]
[1751516437089,0.2188563,108970.0,108960.0,0.27384452]
[1751516437283,0.2188563,108970.0,108960.0,0.52398702]
[1751516437680,0.2507563,108970.0,108960.0,0.45521519]
[1751516437984,0.2507563,108970.0,108960.0,0.20507269]
[1751516440791,0.2507563,108970.0,108960.0,0.45521519]
[1751516442496,0.2507563,108970.0,108960.0,0.20507269]
[1751516442692,0.2507563,108970.0,108960.0,0.45521519]
[1751516442891,0.2607563,108970.0,108960.0,0.45521519]
[1751516443897,0.2607563,108970.0,108960.0,0.27174199]
[1751516444094,0.2607563,108970.0,108960.0,0.45521519]
[1751516444596,0.2607563,108970.0,108960.0,0.27174199]
[1751516445200,0.5108988,108970.0,108960.0,0.02159949]
[1751516446303,0.8410988,108970.0,108960.0,0.02159949]
[1751516449002,0.8410988,108970.0,108960.0,0.005]
[1751516452798,0.8410988,108970.0,108960.0,0.003]
[1751516452994,0.1834732,108960.0,108950.0,1.03660135]
[1751516453199,0.2434732,108960.0,108950.0,1.27660135]
[1751516453399,0.2755732,108960.0,108950.0,1.27660135]
[1751516453607,0.2755732,108960.0,108950.0,1.23072935]
[1751516454108,0.2755732,108960.0,108950.0,1.23572935]
[1751516455809,0.2755732,108960.0,108950.0,1.23277625]
[1751516457212,0.2755732,108960.0,108950.0,1.28763455]
[1751516457410,0.2755732,108960.0,108950.0,1.29263455]
[1751516457910,0.2755732,108960.0,108950.0,1.29063455]
[1751516459717,0.2755732,108960.0,108950.0,1.24476575]
[1751516461615,0.2755732,108960.0,108950.0,1.20819392]
[1751516465718,0.2434732,108960.0,108950.0,1.26819392]
[1751516465914,0.1834732,108960.0,108950.0,1.46819392]
[1751516466321,0.1834732,108960.0,108950.0,1.10739392]
[1751516466618,0.1834732,108960.0,108950.0,1.46819392]
[1751516467423,0.1834732,108960.0,108950.0,1.26819392]